Workbook

Sheet Info

Sheet via Formulas
C9: Total Investments | D9: Total Distributions | E9: Total Loss | G9: Receiver Assets
C10: =SUM(C15:C1048576) -> 680000 | D10: =SUM(D15:D1048576) -> 240000 | E10: =C10-D10 -> 440000 | G10: 50000
G12: Total Distributions
G13: =SUM(G15:G1048576) -> 50000
B15: Name | C15: Investment | D15: Prior Distributions | E15: Prior % Recovery | F15: Breakpts | G15: Distribution Amounts | H15: Final Recovery | J15: Do Not Use | K15: Rate Differentials (must have at least as many columns as the table has rows; copy formulas right as necessary)
B16: Alan | C16: 10000 | D16: 0 | E16: =D16/C16 -> 0 | F16: =D16/C16 * SUM(C$15:C16) - SUM(D$15:D16) -> 0 | G16: =MMULT(Rates, (Recovered > Breakpts) * (Recovered - Breakpts)) -> 3661.971831 | H16: =ROUND((D16+G16)/C16, 6) -> 0.366197 | K16: =IF(COLUMNS($K$16:Me) <= ROWS($K$16:Me) - 1, 0, $C16/SUBTOTAL(9, OFFSET($C$15, 1, 0, COLUMNS($K$16:Me))) - SUM($J16:relW)) -> 1 | L16: =IF(COLUMNS($K$16:Me) <= ROWS($K$16:Me) - 1, 0, $C16/SUBTOTAL(9, OFFSET($C$15, 1, 0, COLUMNS($K$16:Me))) - SUM($J16:relW)) -> -0.9166666667 | M16: =IF(COLUMNS($K$16:Me) <= ROWS($K$16:Me) - 1, 0, $C16/SUBTOTAL(9, OFFSET($C$15, 1, 0, COLUMNS($K$16:Me))) - SUM($J16:relW)) -> -0.03455284553 | N16: =IF(COLUMNS($K$16:Me) <= ROWS($K$16:Me) - 1, 0, $C16/SUBTOTAL(9, OFFSET($C$15, 1, 0, COLUMNS($K$16:Me))) - SUM($J16:relW)) -> -0.02061147372 | O16: =IF(COLUMNS($K$16:Me) <= ROWS($K$16:Me) - 1, 0, $C16/SUBTOTAL(9, OFFSET($C$15, 1, 0, COLUMNS($K$16:Me))) - SUM($J16:relW)) -> -0.01015099607 | P16: =IF(COLUMNS($K$16:Me) <= ROWS($K$16:Me) - 1, 0, $C16/SUBTOTAL(9, OFFSET($C$15, 1, 0, COLUMNS($K$16:Me))) - SUM($J16:relW)) -> -0.003312135665
B17: Barb | C17: 110000 | D17: 10000 | E17: 0.09090909091 | F17: =D17/C17 * SUM(C$15:C17) - SUM(D$15:D17) -> 909.0909091 | G17: =MMULT(Rates, (Recovered > Breakpts) * (Recovered - Breakpts)) -> 30281.69014 | H17: 0.366197 | K17: =IF(COLUMNS($K$16:Me) <= ROWS($K$16:Me) - 1, 0, $C17/SUBTOTAL(9, OFFSET($C$15, 1, 0, COLUMNS($K$16:Me))) - SUM($J17:relW)) -> 0 | L17: =IF(COLUMNS($K$16:Me) <= ROWS($K$16:Me) - 1, 0, $C17/SUBTOTAL(9, OFFSET($C$15, 1, 0, COLUMNS($K$16:Me))) - SUM($J17:relW)) -> 0.9166666667 | M17: =IF(COLUMNS($K$16:Me) <= ROWS($K$16:Me) - 1, 0, $C17/SUBTOTAL(9, OFFSET($C$15, 1, 0, COLUMNS($K$16:Me))) - SUM($J17:relW)) -> -0.3800813008 | N17: =IF(COLUMNS($K$16:Me) <= ROWS($K$16:Me) - 1, 0, $C17/SUBTOTAL(9, OFFSET($C$15, 1, 0, COLUMNS($K$16:Me))) - SUM($J17:relW)) -> -0.2267262109 | O17: =IF(COLUMNS($K$16:Me) <= ROWS($K$16:Me) - 1, 0, $C17/SUBTOTAL(9, OFFSET($C$15, 1, 0, COLUMNS($K$16:Me))) - SUM($J17:relW)) -> -0.1116609567 | P17: =IF(COLUMNS($K$16:Me) <= ROWS($K$16:Me) - 1, 0, $C17/SUBTOTAL(9, OFFSET($C$15, 1, 0, COLUMNS($K$16:Me))) - SUM($J17:relW)) -> -0.03643349232
B18: Cain | C18: 85000 | D18: 20000 | E18: 0.2352941176 | F18: =D18/C18 * SUM(C$15:C18) - SUM(D$15:D18) -> 18235.29412 | G18: =MMULT(Rates, (Recovered > Breakpts) * (Recovered - Breakpts)) -> 11126.76056 | H18: 0.366197 | K18: =IF(COLUMNS($K$16:Me) <= ROWS($K$16:Me) - 1, 0, $C18/SUBTOTAL(9, OFFSET($C$15, 1, 0, COLUMNS($K$16:Me))) - SUM($J18:relW)) -> 0 | L18: =IF(COLUMNS($K$16:Me) <= ROWS($K$16:Me) - 1, 0, $C18/SUBTOTAL(9, OFFSET($C$15, 1, 0, COLUMNS($K$16:Me))) - SUM($J18:relW)) -> 0 | M18: =IF(COLUMNS($K$16:Me) <= ROWS($K$16:Me) - 1, 0, $C18/SUBTOTAL(9, OFFSET($C$15, 1, 0, COLUMNS($K$16:Me))) - SUM($J18:relW)) -> 0.4146341463 | N18: =IF(COLUMNS($K$16:Me) <= ROWS($K$16:Me) - 1, 0, $C18/SUBTOTAL(9, OFFSET($C$15, 1, 0, COLUMNS($K$16:Me))) - SUM($J18:relW)) -> -0.1751975266 | O18: =IF(COLUMNS($K$16:Me) <= ROWS($K$16:Me) - 1, 0, $C18/SUBTOTAL(9, OFFSET($C$15, 1, 0, COLUMNS($K$16:Me))) - SUM($J18:relW)) -> -0.08628346657 | P18: =IF(COLUMNS($K$16:Me) <= ROWS($K$16:Me) - 1, 0, $C18/SUBTOTAL(9, OFFSET($C$15, 1, 0, COLUMNS($K$16:Me))) - SUM($J18:relW)) -> -0.02815315315
B19: Dana | C19: 150000 | D19: 50000 | E19: 0.3333333333 | F19: =D19/C19 * SUM(C$15:C19) - SUM(D$15:D19) -> 38333.33333 | G19: =MMULT(Rates, (Recovered > Breakpts) * (Recovered - Breakpts)) -> 4929.577465 | H19: 0.366197 | K19: =IF(COLUMNS($K$16:Me) <= ROWS($K$16:Me) - 1, 0, $C19/SUBTOTAL(9, OFFSET($C$15, 1, 0, COLUMNS($K$16:Me))) - SUM($J19:relW)) -> 0 | L19: =IF(COLUMNS($K$16:Me) <= ROWS($K$16:Me) - 1, 0, $C19/SUBTOTAL(9, OFFSET($C$15, 1, 0, COLUMNS($K$16:Me))) - SUM($J19:relW)) -> 0 | M19: =IF(COLUMNS($K$16:Me) <= ROWS($K$16:Me) - 1, 0, $C19/SUBTOTAL(9, OFFSET($C$15, 1, 0, COLUMNS($K$16:Me))) - SUM($J19:relW)) -> 0 | N19: =IF(COLUMNS($K$16:Me) <= ROWS($K$16:Me) - 1, 0, $C19/SUBTOTAL(9, OFFSET($C$15, 1, 0, COLUMNS($K$16:Me))) - SUM($J19:relW)) -> 0.4225352113 | O19: =IF(COLUMNS($K$16:Me) <= ROWS($K$16:Me) - 1, 0, $C19/SUBTOTAL(9, OFFSET($C$15, 1, 0, COLUMNS($K$16:Me))) - SUM($J19:relW)) -> -0.152264941 | P19: =IF(COLUMNS($K$16:Me) <= ROWS($K$16:Me) - 1, 0, $C19/SUBTOTAL(9, OFFSET($C$15, 1, 0, COLUMNS($K$16:Me))) - SUM($J19:relW)) -> -0.04968203498
B20: Eric | C20: 200000 | D20: 80000 | E20: 0.4 | F20: =D20/C20 * SUM(C$15:C20) - SUM(D$15:D20) -> 62000 | G20: =MMULT(Rates, (Recovered > Breakpts) * (Recovered - Breakpts)) -> 0 | H20: 0.4 | K20: =IF(COLUMNS($K$16:Me) <= ROWS($K$16:Me) - 1, 0, $C20/SUBTOTAL(9, OFFSET($C$15, 1, 0, COLUMNS($K$16:Me))) - SUM($J20:relW)) -> 0 | L20: =IF(COLUMNS($K$16:Me) <= ROWS($K$16:Me) - 1, 0, $C20/SUBTOTAL(9, OFFSET($C$15, 1, 0, COLUMNS($K$16:Me))) - SUM($J20:relW)) -> 0 | M20: =IF(COLUMNS($K$16:Me) <= ROWS($K$16:Me) - 1, 0, $C20/SUBTOTAL(9, OFFSET($C$15, 1, 0, COLUMNS($K$16:Me))) - SUM($J20:relW)) -> 0 | N20: =IF(COLUMNS($K$16:Me) <= ROWS($K$16:Me) - 1, 0, $C20/SUBTOTAL(9, OFFSET($C$15, 1, 0, COLUMNS($K$16:Me))) - SUM($J20:relW)) -> 0 | O20: =IF(COLUMNS($K$16:Me) <= ROWS($K$16:Me) - 1, 0, $C20/SUBTOTAL(9, OFFSET($C$15, 1, 0, COLUMNS($K$16:Me))) - SUM($J20:relW)) -> 0.3603603604 | P20: =IF(COLUMNS($K$16:Me) <= ROWS($K$16:Me) - 1, 0, $C20/SUBTOTAL(9, OFFSET($C$15, 1, 0, COLUMNS($K$16:Me))) - SUM($J20:relW)) -> -0.0662427133
B21: Fran | C21: 125000 | D21: 80000 | E21: 0.64 | F21: =D21/C21 * SUM(C$15:C21) - SUM(D$15:D21) -> 195200 | G21: =MMULT(Rates, (Recovered > Breakpts) * (Recovered - Breakpts)) -> 0 | H21: 0.64 | K21: =IF(COLUMNS($K$16:Me) <= ROWS($K$16:Me) - 1, 0, $C21/SUBTOTAL(9, OFFSET($C$15, 1, 0, COLUMNS($K$16:Me))) - SUM($J21:relW)) -> 0 | L21: =IF(COLUMNS($K$16:Me) <= ROWS($K$16:Me) - 1, 0, $C21/SUBTOTAL(9, OFFSET($C$15, 1, 0, COLUMNS($K$16:Me))) - SUM($J21:relW)) -> 0 | M21: =IF(COLUMNS($K$16:Me) <= ROWS($K$16:Me) - 1, 0, $C21/SUBTOTAL(9, OFFSET($C$15, 1, 0, COLUMNS($K$16:Me))) - SUM($J21:relW)) -> 0 | N21: =IF(COLUMNS($K$16:Me) <= ROWS($K$16:Me) - 1, 0, $C21/SUBTOTAL(9, OFFSET($C$15, 1, 0, COLUMNS($K$16:Me))) - SUM($J21:relW)) -> 0 | O21: =IF(COLUMNS($K$16:Me) <= ROWS($K$16:Me) - 1, 0, $C21/SUBTOTAL(9, OFFSET($C$15, 1, 0, COLUMNS($K$16:Me))) - SUM($J21:relW)) -> 0 | P21: =IF(COLUMNS($K$16:Me) <= ROWS($K$16:Me) - 1, 0, $C21/SUBTOTAL(9, OFFSET($C$15, 1, 0, COLUMNS($K$16:Me))) - SUM($J21:relW)) -> 0.1838235294

Sheet via Macro
D2: Total Investments | E2: Total Distributions | H2: 5. Receiver Assets
D3: =SUM(tbl D:D) -> 5036223.2 | E3: =SUM(tbl E:E) -> 852605.82 | H3: 300000
E5: Total Loss | H5: Total Distribution | S5: Random Data for Test Copy from below and paste into table at left
E6: =D3-E3 -> 4183617.38 | H6: =SUM(H8:H1048576) -> 300000
B8: 1. ID | C8: 2. Name | D8: 3. Investment | E8: 4. Prior Distributions | F8: Prior % Recovery | G8: Distribution Breakpoints | H8: Distribution Amount | I8: Final Recovery | S8: 1. ID | T8: 2. Name | U8: 3. Investment | V8: 4. Prior Distributions
B9: 117909436 | C9: Alan | D9: 608055.21 | E9: 177.13 | F9: =E9/D9 -> 0.0002913057846 | G9: 0 | H9: 61069.91318 | I9: =MROUND((E9 + H9) / D9, 1/65536) -> 0.1007232666 | S9: 117909436 | T9: Alan | U9: =ROUND(10^(2 * RAND() + 4), 2) -> 33814.92 | V9: =ROUND(10 ^ (RAND()^0.25 * LOG(U9)), 2) -> 16647.3
B10: 126364890 | C10: Barb | D10: 19158.82 | E10: 900.52 | F10: 0.04700289475 | G10: 114808.3 | H10: 1029.273695 | I10: 0.1007232666 | S10: 126364890 | T10: Barb | U10: =ROUND(10^(2 * RAND() + 4), 2) -> 18721.05 | V10: 4914.87
B11: 150464948 | C11: Cain | D11: 37188.9 | E11: 9930.08 | F11: 0.2670173089 | G11: 948244.76 | H11: 0 | I11: 0.2670135498 | S11: 150464948 | T11: Cain | U11: 502789.35 | V11: 1178.17
B12: 175395345 | C12: Dana | D12: 239146.35 | E12: 6451.14 | F12: 0.02697569919 | G12: 50687.08 | H12: 17637.14503 | I12: 0.1007232666 | S12: 175395345 | T12: Dana | U12: 41160.38 | V12: 10961.06
B13: 181338965 | C13: Eric | D13: 76912.99 | E13: 7906.21 | F13: 0.1027942094 | G13: 307555.27 | H13: 0 | I13: 0.1027984619 | S13: 181338965 | T13: Eric | U13: 182734.88 | V13: 163261.99
B14: 250893382 | C14: Fran | D14: 12981.7 | E14: 8700.08 | F14: 0.6701803308 | G14: 2689809.75 | H14: 0 | I14: 0.6701812744 | S14: 250893382 | T14: Fran | U14: 18629.53 | V14: 883.49
B15: 257621544 | C15: Gary | D15: 209646.78 | E15: 20927.69 | F15: 0.09982356991 | G15: 296702.72 | H15: 189.2179934 | I15: 0.1007232666 | S15: 257621544 | T15: Gary | U15: 44762.16 | V15: 1386.98
B16: 315034233 | C16: Hana | D16: 821843.02 | E16: 26167.17 | F16: 0.03183962066 | G16: 63136.1 | H16: 56613.89197 | I16: 0.1007232666 | S16: 315034233 | T16: Hana | U16: 21332.32 | V16: 659.62
B17: 325047634 | C17: Ivan | D17: 40537.65 | E17: 39275.38 | F17: 0.9688617865 | G17: 4027437.59 | H17: 0 | I17: 0.9688568115 | S17: 325047634 | T17: Ivan | U17: 174693.63 | V17: 25.55
B18: 370048693 | C18: Jane | D18: 26609.22 | E18: 987.15 | F18: 0.03709804346 | G18: 80916.42 | H18: 1693.093655 | I18: 0.1007232666 | S18: 370048693 | T18: Jane | U18: 194846.75 | V18: 144560.71
B19: 405998977 | C19: Kent | D19: 468100.01 | E19: 418136.95 | F19: 0.8932641339 | G19: 3659658.39 | H19: 0 | I19: 0.8932647705 | S19: 405998977 | T19: Kent | U19: 995346.31 | V19: 123768.51
B20: 441507976 | C20: Leah | D20: 123101.55 | E20: 119907.59 | F20: 0.9740542666 | G20: 4052948.88 | H20: 0 | I20: 0.9740600586 | S20: 441507976 | T20: Leah | U20: 454648.26 | V20: 320929.46
B21: 441881808 | C21: Mark | D21: 21227.83 | E21: 4287.77 | F21: 0.2019881448 | G21: 679765.71 | H21: 0 | I21: 0.2019805908 | S21: 441881808 | T21: Mark | U21: 934470.01 | V21: 3361.16
B22: 495836196 | C22: Nina | D22: 646663.46 | E22: 7186.46 | F22: 0.01111313758 | G22: 15863.09 | H22: 57949.4448 | I22: 0.1007232666 | S22: 495836196 | T22: Nina | U22: 134902.57 | V22: 12568.92
B23: 515511571 | C23: Otto | D23: 17154.17 | E23: 6425.25 | F23: 0.3745590722 | G23: 1410476.95 | H23: 0 | I23: 0.3745574951 | S23: 515511571 | T23: Otto | U23: 46818.16 | V23: 26010.79
B24: 527754303 | C24: Peri | D24: 21667.96 | E24: 17821.73 | F24: 0.8224922882 | G24: 3350933.39 | H24: 0 | I24: 0.8224945068 | S24: 527754303 | T24: Peri | U24: 15747.08 | V24: 4186.1
B25: 749317591 | C25: Quin | D25: 17215.03 | E25: 5918.28 | F25: 0.3437856338 | G25: 1277829.48 | H25: 0 | I25: 0.3437805176 | S25: 749317591 | T25: Quin | U25: 77060.14 | V25: 26266.64
B26: 784691205 | C26: Rene | D26: 90416.66 | E26: 18460.08 | F26: 0.2041667985 | G26: 688354.88 | H26: 0 | I26: 0.2041625977 | S26: 784691205 | T26: Rene | U26: 12601.25 | V26: 3927.89
B27: 788378351 | C27: Seth | D27: 38233.38 | E27: 50.2 | F27: 0.001312988807 | G27: 797.35 | H27: 3800.900311 | I27: 0.1007232666 | S27: 788378351 | T27: Seth | U27: 365521.86 | V27: 2998.82
B28: 833311421 | C28: Tina | D28: 891008.15 | E28: 993.77 | F28: 0.00111533211 | G28: 501.05 | H28: 88754.03062 | I28: 0.1007232666 | S28: 833311421 | T28: Tina | U28: 288792.99 | V28: 251328.34
B29: 844807967 | C29: Ulis | D29: 16549.37 | E29: 640.87 | F29: 0.03872473695 | G29: 86460.06 | H29: 1026.083888 | I29: 0.1007232666 | S29: 844807967 | T29: Ulis | U29: 92152.52 | V29: 54731.03
B30: 847088600 | C30: Vera | D30: 203879.27 | E30: 41274.15 | F30: 0.2024440739 | G30: 681489.68 | H30: 0 | I30: 0.2024383545 | S30: 847088600 | T30: Vera | U30: 30680.5 | V30: 5740.11
B31: 875003034 | C31: Wade | D31: 180547.19 | E31: 44466.74 | F31: 0.2462887404 | G31: 860022.95 | H31: 0 | I31: 0.2462921143 | S31: 875003034 | T31: Wade | U31: 802781.22 | V31: 213924.41
B32: 888046363 | C32: Xana | D32: 29797.02 | E32: 3819.58 | F32: 0.1281866442 | G32: 402273.66 | H32: 0 | I32: 0.1281890869 | S32: 888046363 | T32: Xana | U32: 155489.36 | V32: 13744.92
B33: 979376477 | C33: Yuri | D33: 42226.77 | E33: 38296.37 | F33: 0.9069216045 | G33: 3725628.85 | H33: 0 | I33: 0.9069213867 | S33: 979376477 | T33: Yuri | U33: 17254.02 | V33: 4842.94
B34: 997809152 | C34: Zuni | D34: 136354.74 | E34: 3497.48 | F34: 0.02564986006 | G34: 47610.71 | H34: 10237.00486 | I34: 0.1007232666 | S34: 997809152 | T34: Zuni | U34: 12074.27 | V34: 1622.38
